bitfinex/quotes_ETHUSD_20251024
["timestamp","ask_amount","ask_price","bid_price","bid_amount"]
[1761310139004,0.30121386,3962.3,3961.2,0.464]
[1761310139206,2.52378076,3962.4,3961.4,2.52434821]
[1761310139393,3.513,3962.6,3961.2,0.464]
[1761310139394,2.52385389,3962.2,3961.2,2.98847561]
[1761310139575,2.52385389,3962.2,3961.3,2.52441707]
[1761310139777,4.07911727,3962.1,3961.3,2.5244238]
[1761310140072,0.2181,3962.9,3961.1,2.75264772]
[1761310140073,2.52358567,3962.7,3961.8,2.52410026]
[1761310140269,2.52363059,3962.6,3961.9,3.512]
[1761310140487,2.52363059,3962.6,3961.9,3.9798]
[1761310140811,2.52351386,3962.8,3962.0,2.9917335]
[1761310141008,0.2179,3963.2,3962.1,0.7051]
[1761310141321,0.3085,3963.4,3962.1,1.12681]
[1761310141322,2.52314853,3963.4,3962.1,1.12681]
[1761310141529,2.52295892,3963.6,3962.1,1.12681]
[1761310141530,0.001,3963.8,3963.3,0.2373]
[1761310141688,0.001,3963.8,3963.3,0.7051]
[1761310142024,0.3046,3963.8,3962.6,0.4678]
[1761310142190,2.52290291,3963.7,3962.7,3.511]
[1761310142391,0.001,3963.8,3962.7,3.9788]
[1761310142608,0.001,3963.8,3962.7,0.4678]
[1761310142609,2.52315577,3963.3,3962.7,0.4678]
[1761310142809,2.52315577,3963.3,3962.8,3.51]
[1761310143422,2.52348386,3962.8,3962.5,0.7051]
[1761310143594,0.50461421,3963.3,3962.6,3.509]
[1761310143595,2.52340792,3962.9,3962.6,3.509]
[1761310143796,2.52346131,3962.9,3962.5,3.509]
[1761310144099,2.52347638,3962.8,3962.5,3.509]
[1761310144311,2.52363558,3962.6,3962.1,0.2373]
[1761310144530,0.2179,3963.1,3961.6,2.99202577]
[1761310144688,0.2179,3963.1,3961.6,0.4678]
[1761310144689,2.52346825,3962.8,3961.6,0.4678]
[1761310144894,2.52389636,3962.2,3961.7,3.509]
[1761310145420,2.52389636,3962.2,3961.8,3.508]
[1761310145619,1.99342683,3962.7,3961.2,0.4678]
[1761310145839,1.99342683,3962.7,3961.1,0.2281]
[1761310145840,2.52376864,3962.4,3961.4,2.52435892]
[1761310146019,2.52376864,3962.4,3961.6,2.52422859]
[1761310146389,0.1264,3961.7,3961.6,3.69707333]
[1761310146590,0.001,3963.8,3962.8,2.5234586]
[1761310146794,0.001,3963.8,3962.2,0.50688]
[1761310146795,2.52294181,3963.7,3962.9,6.03037742]
[1761310147037,0.001,3963.8,3963.0,3.507]
[1761310147243,0.001,3963.8,3963.3,2.52313398]
[1761310147402,0.001,3963.8,3963.6,2.52294543]
[1761310147716,0.001,3963.8,3963.7,3.9748]
[1761310148609,0.001,3963.8,3963.7,3.507]
[1761310149232,0.001,3963.8,3963.7,3.9748]
[1761310149424,0.001,3963.8,3963.7,6.49769527]
[1761310149874,0.001,3963.8,3963.7,7.90664657]
[1761310150430,0.001,3963.8,3963.7,4.39964657]
[1761310150768,0.001,3963.8,3963.7,3.504]
[1761310151829,0.001,3963.8,3963.7,3.9718]
[1761310152026,0.001,3963.8,3963.7,6.49469527]
[1761310152226,0.001,3963.8,3963.0,0.50688]
[1761310152227,0.0002,3963.8,3963.0,0.50688]
[1761310152460,2.52290348,3963.7,3963.0,0.969]
[1761310152662,0.0002,3963.8,3963.1,0.4678]
[1761310152961,0.0002,3963.8,3963.2,2.52320334]
[1761310153143,2.52289527,3963.7,3962.5,0.4678]
[1761310153337,2.52326235,3963.2,3962.7,1.898]
[1761310153741,2.52329194,3963.1,3962.7,1.898]
[1761310154130,2.52322762,3963.2,3962.4,2.52370308]
[1761310154336,2.52322762,3963.2,3962.5,6.55413553]
[1761310154864,2.78561197,3963.6,3962.5,4.03048359]
[1761310155040,2.5229887,3963.6,3962.6,3.01663156]
[1761310155372,0.0002,3963.8,3962.7,0.97468]
[1761310155539,2.52290346,3963.7,3962.9,2.52338194]
[1761310155727,0.4325,3963.7,3962.3,0.2373]
[1761310155929,1.5552,3963.5,3962.3,0.2373]
[1761310156144,1.5552,3963.5,3961.5,0.4678]
[1761310156345,2.52371064,3962.5,3961.7,2.52413022]
[1761310156551,0.1264,3961.8,3961.7,3.14268583]
[1761310157061,0.1264,3961.8,3961.7,4.11852245]
[1761310157267,0.1264,3961.8,3961.7,6.64269136]
[1761310157650,0.1264,3961.8,3960.8,4.31718862]
[1761310157651,2.65050904,3961.8,3960.8,3.22983278]
[1761310157852,0.1986,3962.1,3961.1,3.5]
[1761310158145,0.1264,3961.9,3961.3,0.1264]
[1761310158469,0.4148,3962.7,3961.4,3.499]
[1761310158774,0.4148,3962.7,3961.4,3.8489]
[1761310158974,0.4148,3962.7,3961.6,2.52421195]
[1761310158975,4.07891643,3962.5,3961.6,2.52421195]
[1761310159145,0.2179,3962.9,3961.5,0.4678]
[1761310159468,0.2179,3962.9,3961.0,0.50888]
[1761310159469,0.1264,3961.7,3961.1,0.4678]
[1761310159645,0.4148,3962.8,3961.2,3.499]
[1761310159848,2.52392859,3962.1,3961.3,2.52441019]
[1761310160050,2.52385656,3962.2,3961.3,0.4678]
[1761310160364,0.4148,3962.7,3961.3,0.4678]
[1761310160365,2.52379856,3962.3,3961.5,2.52424628]
[1761310160753,0.1264,3961.6,3961.5,2.52424628]
[1761310161074,2.52386251,3962.2,3961.0,0.002]
[1761310161075,2.52455126,3961.1,3961.0,0.002]
[1761310161400,4.07975126,3961.1,3961.0,0.002]
[1761310161579,4.49245126,3961.1,3961.0,0.002]
[1761310161875,4.49245126,3961.1,3958.7,0.88624917]
[1761310161876,5.04935746,3960.9,3958.7,0.4678]
[1761310162049,1.5552,3960.7,3959.0,3.498]
[1761310162240,2.52538196,3959.8,3959.0,3.498]
[1761310162435,0.4107,3960.7,3959.0,3.498]
[1761310162773,2.1024,3960.7,3959.0,3.498]
[1761310162939,2.52542929,3959.8,3959.0,3.498]
[1761310163141,2.5254476,3959.7,3959.1,0.67290466]
[1761310163360,2.7432263,3959.9,3959.1,0.67290466]
[1761310163559,0.2179,3959.9,3959.1,0.67290466]
[1761310163957,0.2173,3960.3,3959.1,0.67290466]
[1761310163958,0.2179,3960.2,3959.2,2.52574948]
[1761310164160,0.1108,3960.7,3959.3,0.4678]
[1761310164470,1.5552,3960.4,3959.3,0.4678]
[1761310164669,0.40664458,3960.7,3959.3,0.4678]
[1761310164670,0.40664458,3960.7,3959.6,2.52545226]
[1761310164869,1.5552,3960.3,3959.1,0.67290466]
[1761310165062,1.5552,3960.3,3959.1,3.66651957]
[1761310165247,4.08013372,3960.5,3959.2,3.497]
[1761310165451,1.5552,3960.6,3959.4,2.52563519]
[1761310165663,0.1108,3960.7,3960.0,2.52524089]
[1761310165864,1.5552,3960.8,3959.9,3.496]
[1761310166063,2.52485661,3960.7,3959.9,3.496]
[1761310166264,0.2163,3960.8,3959.9,3.496]
[1761310166664,0.2163,3960.8,3959.9,4.35068697]
[1761310166665,1.5552,3960.8,3959.9,4.35068697]
[1761310166845,0.1993,3961.7,3960.5,2.52493372]
[1761310167045,1.5552,3961.2,3960.3,2.52506123]
[1761310167244,2.74053263,3961.6,3960.3,2.52506123]
[1761310167245,1.5552,3961.4,3960.3,2.52506123]
[1761310167477,9.11304613,3961.5,3959.4,0.4678]
[1761310167702,2.85825461,3961.4,3959.5,3.496]
[1761310167901,1.5552,3960.7,3959.9,2.52528357]
[1761310168081,1.5552,3960.7,3959.6,2.52550762]
[1761310168082,2.52463405,3961.0,3960.1,2.52516803]
[1761310168281,2.52463493,3961.0,3960.2,6.72521498]
[1761310168585,2.52469313,3960.9,3960.2,3.7333]
[1761310169083,0.2163,3961.3,3960.2,3.7333]
[1761310169285,1.5552,3961.2,3960.2,4.40593271]
[1761310169477,1.5552,3960.9,3960.2,4.40593271]
[1761310169678,2.47469729,3960.9,3960.2,4.40593271]
[1761310169892,0.1993,3961.7,3960.3,0.53213061]
[1761310170087,0.1993,3961.7,3960.4,3.495]
[1761310170316,0.1128,3962.2,3960.6,0.50688]
[1761310170489,0.3009,3962.2,3960.5,0.88792]
[1761310170692,2.82475899,3962.2,3960.8,0.50688]
[1761310170910,0.1128,3962.2,3961.2,2.52443198]
[1761310171093,0.001,3962.2,3960.9,0.4679]
[1761310171279,0.1264,3961.7,3961.5,2.52429635]
[1761310171476,0.1264,3961.7,3961.6,3.64465027]
[1761310171679,0.1264,3961.7,3961.6,7.13865027]
[1761310172009,0.1264,3961.8,3961.7,2.52416891]
[1761310172186,0.1264,3961.8,3961.7,0.4679]
[1761310172375,0.1264,3961.8,3961.7,2.99206891]
[1761310172577,0.1264,3961.8,3961.7,4.00904432]
[1761310173316,0.001,3962.2,3962.0,2.52394125]
[1761310173475,0.001,3962.2,3962.1,6.23161408]
[1761310173678,0.1274,3962.2,3962.1,6.69951408]
[1761310173886,0.1274,3962.2,3962.1,0.2147]
[1761310174108,0.1274,3962.2,3962.1,4.1756]
[1761310174311,0.1274,3962.2,3962.1,7.11707408]
[1761310174916,2.52264989,3964.1,3962.1,7.11707408]
[1761310174917,0.67694698,3964.8,3962.2,3.35970741]
[1761310175124,0.67694698,3965.8,3964.2,2.52257706]
[1761310175333,0.2278,3966.6,3964.5,8.89674613]
[1761310175536,0.1264,3965.7,3964.3,9.36464613]
[1761310175746,1.5552,3965.9,3964.3,0.4679]
[1761310176066,0.1264,3964.6,3964.5,2.52238617]
[1761310176232,0.2278,3966.6,3964.5,2.52238617]
[1761310176233,0.4132,3965.7,3964.7,2.52223111]
[1761310176397,0.4132,3965.7,3964.8,3.491]
[1761310176831,0.4132,3965.7,3964.8,6.0131905]
[1761310177145,2.52118983,3966.4,3965.2,2.5219366]
[1761310177146,0.2278,3965.9,3965.2,2.5219366]
[1761310177434,0.2278,3965.9,3965.3,2.52187033]
[1761310177792,2.7089494,3966.3,3965.4,3.49]
[1761310178018,1.5552,3966.1,3965.4,3.49]
[1761310178226,2.52138525,3966.1,3965.5,3.49]
[1761310178424,1.5552,3965.9,3965.6,3.49]
[1761310178700,0.45909494,3966.2,3965.6,3.49]
[1761310178701,2.98046216,3966.2,3965.6,3.49]
[1761310178938,2.52139413,3966.1,3965.6,3.49]
[1761310179139,0.70569397,3966.0,3965.6,3.49]
[1761310179445,2.01429494,3966.2,3965.6,3.49]
[1761310179446,0.27099494,3966.2,3965.6,3.49]
[1761310179595,0.001,3966.5,3965.6,3.49]
[1761310179799,0.001,3966.5,3965.7,0.4679]
[1761310180043,0.001,3966.5,3966.4,2.52117789]
[1761310180210,0.001,3966.5,3966.4,6.22487789]
[1761310180411,0.001,3966.5,3966.4,6.69277789]
[1761310181328,0.001,3966.5,3966.4,7.57405367]
[1761310181508,0.001,3966.5,3966.4,6.22487789]
[1761310181697,0.001,3966.5,3966.4,6.22387789]
[1761310182095,0.001,3966.5,3966.4,6.69177789]
[1761310182356,0.001,3966.5,3966.4,7.19865789]
[1761310182545,0.001,3966.5,3966.4,8.75385789]
[1761310182765,0.001,3966.9,3966.8,2.52092366]
[1761310182927,0.001,3966.9,3966.8,11.91077902]
[1761310183129,0.001,3966.9,3966.8,12.39244979]
[1761310183329,0.001,3967.3,3967.2,3.02754948]
[1761310183529,0.001,3967.3,3967.2,6.53875617]
[1761310183760,0.001,3967.3,3967.2,7.69315689]
[1761310184157,2.51908204,3969.7,3967.3,0.50688]
[1761310184332,2.51944122,3969.2,3967.9,0.50688]
[1761310184534,1.5552,3969.2,3968.4,2.51988851]
[1761310184735,2.5192863,3969.4,3968.5,3.486]
[1761310184936,2.51945764,3969.2,3968.6,3.486]
[1761310185231,0.25192863,3969.3,3968.6,3.486]
[1761310185462,0.2286,3969.6,3968.6,3.486]
[1761310185763,2.7468252,3969.8,3968.9,2.51954176]
[1761310185968,0.2278,3969.8,3968.6,3.9539]
[1761310186133,0.001,3970.0,3969.3,2.51929844]
[1761310186338,0.1256,3969.4,3968.5,0.1256]
[1761310186581,0.1256,3969.0,3968.9,2.51958981]
[1761310186780,2.51993747,3970.0,3969.2,2.5193977]
[1761310186994,0.001,3970.0,3969.3,6.00333382]
[1761310187193,0.1256,3969.4,3969.3,6.00333382]
[1761310187516,0.1256,3969.4,3969.3,3.484]
[1761310188881,0.1256,3969.4,3969.3,6.4712359]
[1761310189416,0.001,3969.5,3969.4,2.51927243]
[1761310189417,0.1266,3969.5,3969.4,2.51927243]
[1761310189600,0.001,3969.5,3969.4,3.49405243]
[1761310190120,0.001,3969.5,3969.4,3.02615243]
[1761310190349,0.001,3969.5,3969.1,0.1256]
[1761310190554,0.1256,3969.2,3967.9,9.11144613]
[1761310190846,0.1256,3968.8,3968.7,2.51971678]
[1761310191031,0.1256,3968.8,3968.7,6.00071678]
[1761310191411,0.1256,3968.8,3968.7,2.51971678]
[1761310191614,0.1256,3968.8,3968.7,6.00071678]
[1761310192052,0.001,3969.5,3969.3,2.51928199]
[1761310192224,0.001,3969.5,3969.4,3.481]
[1761310192429,0.001,3969.5,3969.4,3.48]
[1761310193116,0.001,3969.5,3969.4,5.99927243]
[1761310193313,0.001,3969.5,3969.4,6.97405243]
[1761310193548,0.001,3969.5,3969.4,7.923393]
[1761310194138,0.001,3969.5,3969.4,3.479]
[1761310195449,0.001,3969.5,3969.4,5.99827243]
[1761310195650,0.001,3969.5,3969.4,3.479]
[1761310196517,0.001,3969.5,3968.8,0.50688]
[1761310196518,0.001,3969.5,3968.1,1.889]
[1761310196724,2.51942322,3969.2,3968.5,2.51982789]
[1761310197049,2.51942322,3969.2,3968.2,2.51997682]
[1761310197050,0.4393,3969.1,3968.2,2.51997682]
[1761310197248,0.4393,3969.1,3967.9,0.6889]
[1761310197249,2.51963579,3968.9,3968.3,5.9979601]
[1761310197453,0.001,3969.5,3969.0,0.2323]
[1761310197618,0.001,3969.5,3969.2,2.51939937]
[1761310197819,0.001,3969.5,3969.3,2.5193359]
[1761310198019,0.001,3969.5,3969.1,3.477]
[1761310198419,0.001,3969.5,3969.2,2.5193419]
[1761310198641,0.001,3969.5,3969.0,0.2323]
[1761310198841,0.001,3969.5,3969.1,3.477]
[1761310199044,0.001,3969.5,3968.7,0.4742]
[1761310199247,0.001,3969.5,3968.9,2.51957141]
[1761310199444,0.4306,3969.4,3969.0,3.476]
[1761310199721,0.4306,3969.4,3969.1,3.476]
[1761310199722,2.51934032,3969.3,3969.1,3.476]
[1761310199921,2.94987752,3969.4,3969.1,3.476]
[1761310200153,2.94907752,3969.4,3969.1,3.476]
[1761310200351,2.94907752,3969.4,3969.2,3.476]
[1761310200352,3.06623483,3969.4,3969.2,3.476]
[1761310200657,0.001,3969.5,3969.1,3.476]
[1761310201946,0.1256,3969.2,3969.1,3.476]
[1761310202441,0.1256,3969.2,3968.5,0.4438]
[1761310202758,0.2213,3968.6,3967.9,2.73492457]
[1761310202960,0.1256,3968.3,3968.1,2.5200493]
[1761310203145,0.1256,3968.3,3967.9,0.2147]
[1761310203345,0.1264,3968.0,3967.2,0.71170741]
[1761310203550,0.1264,3967.7,3967.6,2.52041536]
[1761310203958,0.1264,3967.7,3967.2,2.52060829]
[1761310204159,0.4329,3967.6,3967.3,3.474]
[1761310204359,0.1264,3967.4,3967.3,3.474]
[1761310204660,0.1264,3967.4,3967.3,5.99460595]
[1761310204834,0.1264,3967.4,3967.3,3.474]
[1761310205034,0.1264,3967.4,3967.3,6.59407091]
[1761310205292,2.51997406,3968.3,3967.6,2.52035817]
[1761310205460,2.52003707,3968.2,3967.5,2.52046806]
[1761310205790,1.9489,3968.5,3967.5,2.52046806]
[1761310205791,2.51997601,3968.3,3967.5,2.52046806]
[1761310205992,2.51951006,3969.1,3967.5,2.52046806]
[1761310205993,0.1264,3967.8,3967.7,3.02723184]
[1761310206158,0.3937,3969.0,3967.7,3.02723184]
[1761310206159,0.001,3969.5,3968.4,0.50688]
[1761310206354,0.001,3969.5,3967.8,3.58193939]
[1761310206355,0.001,3969.5,3969.2,2.5193888]
[1761310206693,0.001,3969.5,3969.4,2.51927243]
[1761310206863,0.001,3969.5,3969.4,5.99327243]
[1761310207191,0.001,3969.5,3969.4,7.12195967]
[1761310207390,0.001,3969.5,3969.4,7.56575967]
[1761310207601,0.001,3969.5,3969.4,3.64795967]
[1761310207801,0.001,3969.5,3969.4,5.99227243]
[1761310208208,0.001,3969.5,3969.4,3.473]
[1761310208671,0.001,3969.5,3969.4,2.51927243]
[1761310209005,0.001,3969.5,3969.4,5.99227243]
[1761310209195,0.001,3969.5,3969.4,6.94295243]
[1761310209417,0.001,3969.5,3969.4,7.88918736]
[1761310209767,0.001,3969.5,3969.4,9.44438736]
[1761310209961,0.001,3969.5,3969.4,10.33063653]
[1761310210275,0.001,3969.5,3969.4,9.44438736]
[1761310211561,0.001,3969.5,3969.4,5.52758736]
[1761310211770,0.001,3969.5,3969.4,5.99027243]
[1761310211996,0.001,3969.5,3969.4,2.51927243]
[1761310212296,0.001,3969.5,3969.4,7.54547243]
[1761310212495,0.001,3969.9,3969.8,4.07421859]
[1761310212661,0.001,3969.9,3969.8,16.64530505]
[1761310212884,0.001,3969.9,3969.8,19.2862234]
[1761310213120,0.001,3969.9,3969.8,18.8810158]
[1761310213509,0.001,3969.9,3969.8,19.2862234]
[1761310214310,0.001,3969.9,3969.8,18.8810158]
[1761310214921,0.001,3969.9,3969.8,15.4100158]
[1761310215109,0.001,3969.9,3969.8,20.21844761]
[1761310215425,0.001,3969.9,3969.8,18.8800158]
[1761310215990,0.1298,3969.9,3969.5,2.51915917]
[1761310216189,0.1266,3969.9,3969.6,3.469]
[1761310216390,0.001,3969.9,3969.8,2.51901859]
[1761310216808,0.001,3969.9,3969.8,12.03771487]
[1761310217025,0.001,3969.9,3969.8,13.99812247]
[1761310217189,0.001,3969.9,3969.8,15.88090387]
[1761310217830,0.001,3969.9,3969.8,19.34990387]
[1761310218009,0.001,3969.9,3969.8,20.24152751]
[1761310218393,0.001,3969.9,3969.8,16.77252751]
[1761310218594,0.001,3969.9,3969.8,20.24052751]
[1761310218822,0.001,3969.9,3969.8,19.34890387]
[1761310219203,0.001,3970.3,3969.8,19.34890387]
[1761310219204,1e-08,3970.3,3970.2,3.25044479]
[1761310219416,1e-08,3970.3,3970.2,7.42698039]
[1761310219628,1e-08,3970.3,3970.2,9.58737418]
[1761310220136,1e-08,3970.3,3970.2,11.07016658]
[1761310220348,1e-08,3970.3,3970.2,7.84459275]
[1761310221144,1e-08,3970.3,3970.2,5.26838985]
[1761310221344,1e-08,3970.3,3970.2,8.29158985]
[1761310221510,1e-08,3970.3,3970.2,4.82458985]
[1761310221716,1e-08,3970.3,3970.2,8.29158985]
[1761310222248,2.51735465,3972.5,3970.2,8.29158985]
[1761310222249,0.4486,3973.0,3970.3,3.02558135]
[1761310222544,2.0038,3973.0,3972.3,2.51738721]
[1761310222758,0.4476,3972.8,3972.4,2.778]
[1761310223246,0.4476,3972.8,3972.5,3.466]
[1761310224182,0.4468,3972.8,3972.5,5.9832966]
[1761310224620,0.4468,3972.8,3972.5,3.466]
[1761310224827,0.001,3973.0,3972.6,2.51723884]
[1761310225352,0.001,3973.0,3972.8,3.02399639]
[1761310225551,0.001,3973.0,3972.8,6.48899639]
[1761310226570,0.001,3973.0,3972.8,3.02399639]
[1761310226725,0.001,3973.0,3972.8,6.61459639]
[1761310227141,0.001,3973.0,3972.8,3.14959639]
[1761310227455,0.001,3973.0,3972.8,7.19973794]
[1761310227873,0.001,3973.0,3972.8,3.73573794]
[1761310228255,0.5266,3972.9,3972.0,2.51756755]
[1761310228444,0.5266,3972.9,3972.2,2.51744825]
[1761310228445,0.3464,3972.8,3972.2,2.51744825]
[1761310228647,0.3464,3972.8,3972.2,2.5174966]
[1761310228974,0.3464,3972.8,3972.3,3.464]
[1761310229678,0.3464,3972.8,3972.4,3.463]
[1761310229856,0.3464,3972.8,3972.0,2.51757552]
[1761310230180,0.65086691,3972.8,3971.1,0.66716614]
[1761310230478,2.51724786,3972.6,3971.3,1.5552]
[1761310230659,2.51724786,3972.6,3971.8,2.51773796]
[1761310230855,0.3464,3972.5,3971.3,2.51800834]
[1761310231045,2.51742462,3972.4,3971.6,2.51783028]
[1761310231241,2.51737893,3972.4,3971.7,3.463]
[1761310231481,0.3446,3972.3,3971.6,2.51785134]
[1761310231658,0.1709,3971.4,3970.4,0.66716614]
[1761310231976,0.3429,3971.3,3970.5,3.462]
[1761310232186,0.3429,3971.3,3970.5,2.51857196]
[1761310232349,0.3429,3971.3,3970.7,2.51842842]
[1761310232542,0.3429,3971.3,3970.8,2.51837258]
[1761310232746,0.1792,3972.0,3971.8,2.51774373]
[1761310232975,0.001,3972.8,3972.2,2.51748057]
[1761310233146,0.001,3972.8,3972.3,3.462]
[1761310233347,0.001,3972.8,3972.3,5.97943199]
[1761310233348,0.339,3972.8,3972.3,5.97943199]
[1761310233544,0.339,3972.8,3972.3,3.462]
[1761310235678,0.001,3972.8,3972.3,6.5773878]
[1761310235989,0.001,3972.8,3972.4,2.51736985]
[1761310236307,0.001,3972.8,3972.3,6.57737935]
[1761310236465,0.001,3972.8,3972.3,3.462]
[1761310236773,0.338,3972.7,3972.4,3.461]
[1761310236977,0.338,3972.7,3972.0,2.5175931]
[1761310236978,0.338,3972.7,3972.2,2.51745012]
[1761310237274,0.338,3972.7,3972.3,5.97842005]
[1761310237470,0.338,3972.7,3972.3,3.461]
[1761310237786,0.001,3972.8,3972.4,2.51732636]
[1761310238293,0.1256,3972.5,3972.4,2.51732636]
[1761310238458,0.1256,3972.5,3972.4,5.97732636]
[1761310239197,0.1256,3972.5,3972.4,3.46]
[1761310239399,0.1256,3972.5,3972.4,5.97736985]
[1761310239565,0.1256,3972.5,3972.4,2.51736985]
[1761310239770,0.1256,3972.5,3972.4,5.97736985]
[1761310239967,0.001,3972.8,3972.7,2.51717975]
[1761310240267,0.001,3972.8,3972.7,3.46]
[1761310240470,0.001,3972.8,3972.7,5.97717975]
[1761310240471,0.1266,3972.8,3972.7,5.97717975]
[1761310240967,0.1266,3972.8,3972.7,2.51717975]
[1761310241168,0.1266,3972.8,3972.7,5.97717975]
[1761310241667,0.1266,3972.8,3972.7,7.85132713]
[1761310241668,0.001,3972.8,3972.7,7.85132713]
[1761310241884,0.001,3972.8,3972.7,7.97692713]
[1761310243312,0.001,3972.8,3972.7,7.97592713]
[1761310243469,0.001,3972.8,3972.7,4.39132713]
[1761310243678,0.001,3972.8,3972.7,7.97592713]
[1761310243994,0.001,3972.8,3972.7,9.53112713]
[1761310244409,0.001,3972.8,3972.7,6.07212713]
[1761310244615,0.001,3972.8,3972.7,9.53012713]
[1761310245078,0.001,3972.8,3972.7,10.19729327]
[1761310246515,0.001,3972.8,3972.7,9.53012713]
[1761310247239,0.001,3972.8,3972.7,6.07212713]
[1761310247406,0.001,3972.8,3972.7,9.52912713]
[1761310247607,0.001,3972.8,3972.7,5.64142713]
[1761310247811,0.001,3972.8,3972.7,7.65497975]
[1761310248011,0.001,3972.8,3972.7,8.16185975]
[1761310248305,0.0002,3972.8,3972.7,8.16185975]
[1761310248933,0.0002,3972.8,3972.7,8.59255975]
[1761310249228,0.0002,3972.8,3972.7,10.53812676]
[1761310249525,0.0002,3972.8,3972.7,10.10742676]
[1761310249728,0.0002,3972.8,3972.7,10.53812676]
[1761310250301,0.0002,3972.8,3972.7,9.86943922]
[1761310250502,0.0002,3972.8,3972.7,9.74383922]
[1761310250704,0.0002,3972.8,3972.7,9.31213922]
[1761310251042,0.0002,3972.8,3972.7,18.3108555]
[1761310251209,0.0002,3972.8,3972.7,18.7160631]
[1761310251408,0.0002,3972.8,3972.7,18.81675802]
[1761310251820,0.001,3973.4,3973.2,3.02374298]
[1761310252000,0.001,3973.4,3973.2,7.05452142]
[1761310252203,0.001,3973.4,3973.2,4.03022142]
[1761310252422,0.001,3973.4,3973.2,6.47874298]
[1761310252733,0.001,3973.4,3973.2,6.90944298]
[1761310254532,0.001,3974.2,3974.1,2.51629299]
[1761310254737,0.001,3974.2,3974.1,6.50233591]
[1761310255037,0.001,3974.2,3974.1,8.15764458]
[1761310255243,0.001,3974.2,3974.1,8.82636514]
[1761310255538,0.001,3974.2,3974.1,6.25884458]
[1761310255740,0.001,3974.2,3974.1,11.19463698]
[1761310256341,0.001,3974.2,3974.1,11.29529667]
[1761310257402,0.001,3974.2,3974.1,11.96252492]
[1761310257604,0.001,3974.2,3974.1,8.36905698]
[1761310257806,0.001,3974.2,3973.1,0.66722825]
[1761310257807,0.421,3974.2,3973.1,0.66722825]
[1761310258113,0.421,3974.2,3973.2,3.453]
[1761310258314,0.421,3974.2,3973.8,2.51644705]
[1761310258519,0.421,3974.2,3973.9,3.453]
[1761310258718,0.421,3974.2,3973.9,5.96941963]
[1761310258719,0.1857,3974.0,3973.9,5.96941963]
[1761310258903,0.1857,3974.0,3973.9,5.96841963]
[1761310259107,0.6034,3974.0,3973.9,5.96841963]
[1761310259307,0.6034,3974.0,3973.9,2.51641963]
[1761310259308,0.1857,3974.0,3973.9,2.51641963]
[1761310259612,0.001,3974.2,3974.1,2.51629299]
[1761310260023,0.3796,3974.2,3974.1,3.452]
[1761310260537,0.1266,3974.2,3974.1,5.96829299]
[1761310260726,0.001,3974.2,3974.1,7.32364291]
[1761310260928,0.001,3974.2,3974.0,0.1256]
[1761310261140,0.5042,3974.1,3973.5,0.50688]
[1761310261308,0.2251,3973.6,3973.3,0.1256]
[1761310261510,0.3507,3973.6,3973.5,2.51667295]
[1761310261721,0.7293,3973.6,3973.4,3.452]
[1761310261927,0.3507,3973.6,3973.5,2.51667295]
[1761310262135,0.3507,3973.6,3973.5,5.96767295]
[1761310262551,0.7293,3973.6,3973.5,5.96767295]
[1761310263865,0.7293,3973.6,3972.5,0.66722825]
[1761310264169,0.1256,3973.4,3972.3,0.79282825]
[1761310264468,0.0911,3972.6,3972.5,2.51730648]
[1761310264826,0.5495,3972.6,3972.5,2.51730648]
[1761310265221,0.5495,3972.6,3972.5,5.96730648]
[1761310265222,0.6751,3972.6,3972.5,5.96730648]
[1761310266155,0.4584,3973.2,3973.0,2.51697049]
[1761310266371,0.2251,3973.6,3973.1,3.45]
[1761310266570,0.2251,3973.6,3973.5,2.51667295]
[1761310266851,0.3507,3973.6,3973.5,5.96667295]
[1761310267223,0.2202,3974.0,3973.9,2.51641963]
[1761310267424,0.2202,3974.0,3973.9,5.96641963]
[1761310268144,0.001,3974.2,3974.1,2.51629299]
[1761310268985,0.4607,3974.2,3973.2,2.51686298]
[1761310269174,0.2225,3974.1,3974.0,2.51632662]
[1761310269381,0.001,3974.2,3974.0,5.96532662]
[1761310269677,0.001,3974.2,3974.1,2.51629299]
[1761310269885,0.456,3974.2,3974.1,2.51629299]
[1761310270533,0.456,3974.2,3974.1,5.96529299]
[1761310270780,0.456,3974.2,3974.1,3.449]
[1761310270989,0.456,3974.2,3974.1,2.51629299]
[1761310271165,0.456,3974.2,3974.1,5.96529299]
[1761310271869,0.001,3974.2,3974.1,5.96529299]
[1761310272272,0.0002,3974.2,3974.1,5.96529299]
[1761310272865,0.4552,3974.2,3974.1,5.96529299]
[1761310273068,0.4552,3974.2,3974.1,2.51629299]
[1761310273242,0.4552,3974.2,3974.1,5.96429299]
[1761310273641,0.4552,3974.2,3973.3,3.82]
[1761310273985,0.4552,3974.2,3974.1,2.51629299]
[1761310274143,0.4552,3974.2,3974.1,5.96429299]
[1761310274345,0.4552,3974.2,3974.1,5.96329299]
[1761310275293,0.0002,3974.2,3974.1,5.96329299]
[1761310275852,0.4552,3974.2,3974.1,5.96329299]
[1761310277290,0.5808,3974.2,3974.1,5.96329299]
[1761310278164,0.1258,3974.2,3974.1,5.96329299]
[1761310278887,0.5808,3974.2,3973.3,0.48948441]
[1761310279208,0.5808,3974.2,3972.5,0.66922825]
[1761310279209,1.6808,3974.0,3972.5,0.66922825]
[1761310279374,0.0002,3974.2,3972.6,3.47117243]
[1761310279375,0.1256,3972.9,3972.6,3.47117243]
[1761310279699,0.1256,3973.2,3973.1,2.51692632]
[1761310279899,0.0002,3974.2,3974.1,2.51629299]
[1761310280105,0.0002,3974.2,3974.1,5.96129299]
[1761310280303,0.5808,3974.2,3974.1,5.96129299]
[1761310280513,0.5308,3974.2,3974.1,5.96129299]